[Event "Late-Titled-Tuesday-Blitz-November-28-2023"]
[Site "Chess.com"]
[Date "2023.11.28"]
[Round "3"]
[White "Freeeeeeeeeeeeeeeeee"]
[Black "Chessbard1972"]
[Result "1-0"]
[WhiteElo "2103"]
[BlackElo "2397"]
[TimeControl "180+1"]
[EndTime "14:29:01 PST"]
[Termination "Freeeeeeeeeeeeeeeeee won on time"]

1. d4 {[%clk 0:03:00.9]} 1... Nf6 {[%clk 0:02:58.5]} 2. Nf3 {[%clk 0:03:00.6]}
2... g6 {[%clk 0:02:53.8]} 3. c4 {[%clk 0:02:58.2]} 3... Bg7 {[%clk 0:02:53.9]}
4. Nc3 {[%clk 0:02:59.1]} 4... O-O {[%clk 0:02:53.8]} 5. e4 {[%clk 0:02:59.1]}
5... d6 {[%clk 0:02:54.5]} 6. h3 {[%clk 0:02:59.4]} 6... Na6 {[%clk 0:02:55]} 7.
Bd3 {[%clk 0:02:53.7]} 7... c5 {[%clk 0:02:54.9]} 8. d5 {[%clk 0:02:52.8]} 8...
e6 {[%clk 0:02:55.3]} 9. O-O {[%clk 0:02:52.7]} 9... Re8 {[%clk 0:02:55.4]} 10.
Bg5 {[%clk 0:02:52.2]} 10... h6 {[%clk 0:02:54.9]} 11. Bh4 {[%clk 0:02:50.1]}
11... g5 {[%clk 0:02:54.3]} 12. Bg3 {[%clk 0:02:50.1]} 12... exd5 {[%clk
0:02:54.7]} 13. exd5 {[%clk 0:02:46.5]} 13... Nh5 {[%clk 0:02:54]} 14. Bh2
{[%clk 0:02:38.8]} 14... f5 {[%clk 0:02:53.2]} 15. Qc2 {[%clk 0:02:34.3]} 15...
Qf6 {[%clk 0:02:50.3]} 16. Rfe1 {[%clk 0:02:34]} 16... Nc7 {[%clk 0:02:47.9]}
17. Rxe8+ {[%clk 0:02:33.5]} 17... Nxe8 {[%clk 0:02:48.1]} 18. Re1 {[%clk
0:02:34.3]} 18... Bd7 {[%clk 0:02:47.7]} 19. Nd2 {[%clk 0:02:27.1]} 19... Nf4
{[%clk 0:02:42.4]} 20. Bxf4 {[%clk 0:02:27.2]} 20... gxf4 {[%clk 0:02:41.9]} 21.
Nf3 {[%clk 0:02:27.6]} 21... a6 {[%clk 0:02:36.8]} 22. a4 {[%clk 0:02:16.1]}
22... Rb8 {[%clk 0:02:35.9]} 23. Qd2 {[%clk 0:02:08.8]} 23... b5 {[%clk
0:02:11.8]} 24. axb5 {[%clk 0:02:08.1]} 24... axb5 {[%clk 0:02:12.1]} 25. cxb5
{[%clk 0:02:05.6]} 25... Nc7 {[%clk 0:02:09.8]} 26. Qxf4 {[%clk 0:02:01.8]}
26... Nxb5 {[%clk 0:02:03.9]} 27. Nxb5 {[%clk 0:02:01.3]} 27... Bxb5 {[%clk
0:02:04.1]} 28. Re6 {[%clk 0:01:42.9]} 28... Qxb2 {[%clk 0:01:56.8]} 29. Qxf5
{[%clk 0:01:35.2]} 29... Bxd3 {[%clk 0:01:55.3]} 30. Qxd3 {[%clk 0:01:31.9]}
30... Qb1+ {[%clk 0:01:41.8]} 31. Qxb1 {[%clk 0:01:25.7]} 31... Rxb1+ {[%clk
0:01:42.3]} 32. Kh2 {[%clk 0:01:26.5]} 32... Bf8 {[%clk 0:01:42.2]} 33. Nd2
{[%clk 0:01:20.8]} 33... Rd1 {[%clk 0:01:37.3]} 34. Re2 {[%clk 0:00:59.8]} 34...
h5 {[%clk 0:01:32.9]} 35. Kg3 {[%clk 0:00:59.7]} 35... Bh6 {[%clk 0:01:31.9]}
36. Ne4 {[%clk 0:00:57.3]} 36... Rd4 {[%clk 0:01:20.3]} 37. Nxd6 {[%clk
0:00:48.1]} 37... Bf4+ {[%clk 0:01:19.5]} 38. Kf3 {[%clk 0:00:47.4]} 38... Bxd6
{[%clk 0:01:19.3]} 39. g4 {[%clk 0:00:40.8]} 39... h4 {[%clk 0:01:17.1]} 40. Re6
{[%clk 0:00:38.2]} 40... Rxd5 {[%clk 0:01:16.2]} 41. Rh6 {[%clk 0:00:35.5]}
41... Be7 {[%clk 0:01:14.3]} 42. Rc6 {[%clk 0:00:32.7]} 42... Rd3+ {[%clk
0:01:12.6]} 43. Kg2 {[%clk 0:00:32.7]} 43... Rc3 {[%clk 0:01:10.6]} 44. g5
{[%clk 0:00:32.6]} 44... c4 {[%clk 0:01:08.6]} 45. g6 {[%clk 0:00:32.2]} 45...
Rc1 {[%clk 0:01:07.3]} 46. Rc8+ {[%clk 0:00:29]} 46... Bf8 {[%clk 0:01:06.1]}
47. Kf3 {[%clk 0:00:28.7]} 47... c3 {[%clk 0:01:04.2]} 48. Ke2 {[%clk
0:00:24.6]} 48... Kg7 {[%clk 0:01:03.4]} 49. Kd3 {[%clk 0:00:21.8]} 49... Bb4
{[%clk 0:00:57]} 50. Rc4 {[%clk 0:00:21.4]} 50... Rb1 {[%clk 0:00:54.5]} 51.
Rxh4 {[%clk 0:00:20]} 51... Kxg6 {[%clk 0:00:54.6]} 52. Rg4+ {[%clk 0:00:19.4]}
52... Kf5 {[%clk 0:00:52.6]} 53. Rc4 {[%clk 0:00:14.9]} 53... Rd1+ {[%clk
0:00:51.1]} 54. Ke2 {[%clk 0:00:11.7]} 54... Rd2+ {[%clk 0:00:50.8]} 55. Ke3
{[%clk 0:00:12]} 55... c2 {[%clk 0:00:45.3]} 56. h4 {[%clk 0:00:03.2]} 56... Ke5
{[%clk 0:00:34.2]} 57. h5 {[%clk 0:00:03.7]} 57... Kd5 {[%clk 0:00:31.9]} 58.
Rc8 {[%clk 0:00:03.9]} 58... Ba5 {[%clk 0:00:20.3]} 59. h6 {[%clk 0:00:01.4]}
59... Rd4 {[%clk 0:00:13.2]} 60. h7 {[%clk 0:00:01.6]} 60... Bd2+ {[%clk
0:00:11.1]} 61. Ke2 {[%clk 0:00:01.4]} 61... Rh4 {[%clk 0:00:09.5]} 62. Rxc2
{[%clk 0:00:02.1]} 62... Bb4 {[%clk 0:00:07.7]} 63. Rc7 {[%clk 0:00:02.7]} 63...
Bd6 {[%clk 0:00:06.9]} 64. Kf3 {[%clk 0:00:03.6]} 64... Be5 {[%clk 0:00:06.7]}
65. Rd7+ {[%clk 0:00:03.6]} 65... Ke6 {[%clk 0:00:06.8]} 66. Ra7 {[%clk
0:00:04.3]} 66... Kf5 {[%clk 0:00:06.2]} 67. Ra6 {[%clk 0:00:05]} 67... Rh3+
{[%clk 0:00:05.6]} 68. Kg2 {[%clk 0:00:05.3]} 68... Rxh7 {[%clk 0:00:06.1]} 69.
Ra5 {[%clk 0:00:05.3]} 69... Rg7+ {[%clk 0:00:05.9]} 70. Kf3 {[%clk 0:00:05.9]}
70... Rb7 {[%clk 0:00:05.7]} 71. Rd5 {[%clk 0:00:06.2]} 71... Rb3+ {[%clk
0:00:05.5]} 72. Kg2 {[%clk 0:00:06.3]} 72... Ke4 {[%clk 0:00:06.1]} 73. Rd7
{[%clk 0:00:06.1]} 73... Rb2 {[%clk 0:00:05.9]} 74. Rh7 {[%clk 0:00:05.9]} 74...
Bd4 {[%clk 0:00:05.8]} 75. Rh4+ {[%clk 0:00:06.5]} 75... Kf5 {[%clk 0:00:05.4]}
76. Rh3 {[%clk 0:00:05.9]} 76... Rxf2+ {[%clk 0:00:02.4]} 77. Kg3 {[%clk
0:00:06.6]} 77... Rb2 {[%clk 0:00:01.8]} 78. Rh5+ {[%clk 0:00:06.9]} 78... Ke4
{[%clk 0:00:01.4]} 79. Rh4+ {[%clk 0:00:07.5]} 79... Kd3 {[%clk 0:00:01.7]} 80.
Rg4 {[%clk 0:00:08]} 80... Re2 {[%clk 0:00:01.3]} 81. Kf3 {[%clk 0:00:08.4]} 1-0

[Event "Late-Titled-Tuesday-Blitz-November-28-2023"]
[Site "Chess.com"]
[Date "2023.11.28"]
[Round "3"]
[White "JaackCamel"]
[Black "FM_Kappeler"]
[Result "1-0"]
[WhiteElo "2040"]
[BlackElo "2306"]
[TimeControl "180+1"]
[EndTime "14:29:08 PST"]
[Termination "JaackCamel won by resignation"]

1. d4 {[%clk 0:02:57]} 1... Nf6 {[%clk 0:02:59.6]} 2. c4 {[%clk 0:02:56.5]} 2...
e6 {[%clk 0:02:59.8]} 3. Nc3 {[%clk 0:02:56.1]} 3... Bb4 {[%clk 0:02:59.7]} 4.
e3 {[%clk 0:02:56.1]} 4... O-O {[%clk 0:02:58.7]} 5. Bd3 {[%clk 0:02:55.9]} 5...
d5 {[%clk 0:02:58]} 6. Ne2 {[%clk 0:02:55.6]} 6... c5 {[%clk 0:02:54.2]} 7. O-O
{[%clk 0:02:55.2]} 7... Nc6 {[%clk 0:02:52]} 8. a3 {[%clk 0:02:50.1]} 8... Bxc3
{[%clk 0:02:51]} 9. bxc3 {[%clk 0:02:48.6]} 9... dxc4 {[%clk 0:02:46.6]} 10.
Bxc4 {[%clk 0:02:48.2]} 10... b6 {[%clk 0:02:46.6]} 11. a4 {[%clk 0:02:42]}
11... Bb7 {[%clk 0:02:45.8]} 12. Ba3 {[%clk 0:02:40.3]} 12... Qc7 {[%clk
0:02:36.8]} 13. Bd3 {[%clk 0:02:27]} 13... Rfd8 {[%clk 0:02:32.4]} 14. Ng3
{[%clk 0:02:18.3]} 14... Rac8 {[%clk 0:02:07.9]} 15. Rc1 {[%clk 0:02:16]} 15...
Ne7 {[%clk 0:01:54.3]} 16. Nh5 {[%clk 0:02:12.9]} 16... Nxh5 {[%clk 0:01:48.2]}
17. Qxh5 {[%clk 0:02:07]} 17... Ng6 {[%clk 0:01:42.6]} 18. Qg4 {[%clk
0:01:52.8]} 18... Qd7 {[%clk 0:01:27.9]} 19. Bb5 {[%clk 0:01:36.9]} 19... Bc6
{[%clk 0:01:25.6]} 20. Ba6 {[%clk 0:01:35.4]} 20... Rb8 {[%clk 0:01:07.3]} 21.
a5 {[%clk 0:01:31.6]} 21... cxd4 {[%clk 0:01:03.3]} 22. cxd4 {[%clk 0:01:27.3]}
22... bxa5 {[%clk 0:00:54.4]} 23. h4 {[%clk 0:01:22.4]} 23... Bb5 {[%clk
0:00:43.7]} 24. Bxb5 {[%clk 0:01:13.9]} 24... Rxb5 {[%clk 0:00:43.6]} 25. h5
{[%clk 0:01:14.1]} 25... Ne7 {[%clk 0:00:39]} 26. Rc5 {[%clk 0:01:04.6]} 26...
Rxc5 {[%clk 0:00:32.6]} 27. Bxc5 {[%clk 0:01:04]} 27... h6 {[%clk 0:00:29.1]}
28. Rb1 {[%clk 0:01:02.2]} 28... Nc6 {[%clk 0:00:24.2]} 29. Qg3 {[%clk
0:00:43.1]} 29... a4 {[%clk 0:00:23.1]} 30. Ra1 {[%clk 0:00:38.8]} 30... e5
{[%clk 0:00:17.4]} 31. Rxa4 {[%clk 0:00:34.4]} 31... Nxd4 {[%clk 0:00:15.9]} 32.
Rxd4 {[%clk 0:00:30.7]} 32... exd4 {[%clk 0:00:15.6]} 33. Bxd4 {[%clk
0:00:31.1]} 33... f5 {[%clk 0:00:11.9]} 34. Qe5 {[%clk 0:00:25.9]} 34... a6
{[%clk 0:00:09.3]} 35. Qa5 {[%clk 0:00:22.6]} 35... Ra8 {[%clk 0:00:07.9]} 36.
Qa2+ {[%clk 0:00:19.8]} 36... Qf7 {[%clk 0:00:06.4]} 37. Qa5 {[%clk 0:00:19.2]}
37... Kh7 {[%clk 0:00:06]} 38. g3 {[%clk 0:00:15]} 38... Qxh5 {[%clk 0:00:05.6]}
39. Qe5 {[%clk 0:00:13.5]} 39... Qf7 {[%clk 0:00:05.1]} 40. g4 {[%clk 0:00:13]}
40... fxg4 {[%clk 0:00:04.3]} 41. f4 {[%clk 0:00:12]} 41... gxf3 {[%clk
0:00:03.7]} 42. Qe4+ {[%clk 0:00:11.6]} 42... Kh8 {[%clk 0:00:03.1]} 43. Qxa8+
{[%clk 0:00:10.5]} 43... Kh7 {[%clk 0:00:02.6]} 44. Kf2 {[%clk 0:00:08.8]} 44...
a5 {[%clk 0:00:02]} 45. Qxa5 {[%clk 0:00:08.1]} 45... Qg6 {[%clk 0:00:02.4]} 46.
Kxf3 {[%clk 0:00:07.4]} 46... Qf5+ {[%clk 0:00:02.9]} 47. Ke2 {[%clk 0:00:07.5]}
47... Qc2+ {[%clk 0:00:03]} 48. Kf3 {[%clk 0:00:07.7]} 48... Qf5+ {[%clk
0:00:03.1]} 49. Ke2 {[%clk 0:00:08]} 49... Qc2+ {[%clk 0:00:03.1]} 50. Qd2
{[%clk 0:00:08.7]} 50... Qc4+ {[%clk 0:00:03]} 51. Kf2 {[%clk 0:00:08.5]} 51...
Qf7+ {[%clk 0:00:02.8]} 52. Ke1 {[%clk 0:00:08.3]} 52... Qf3 {[%clk 0:00:02.3]}
53. Qd3+ {[%clk 0:00:08.3]} 53... Kg8 {[%clk 0:00:02]} 54. Kd2 {[%clk
0:00:08.5]} 54... Qf2+ {[%clk 0:00:01.7]} 55. Kc3 {[%clk 0:00:08.9]} 55... Qa2
{[%clk 0:00:01.5]} 56. Qc4+ {[%clk 0:00:08.2]} 56... Qxc4+ {[%clk 0:00:01.3]}
57. Kxc4 {[%clk 0:00:08.8]} 57... h5 {[%clk 0:00:02]} 58. Kd3 {[%clk 0:00:09.2]}
58... h4 {[%clk 0:00:02.5]} 59. Ke4 {[%clk 0:00:09.6]} 59... h3 {[%clk
0:00:02.8]} 60. Kf3 {[%clk 0:00:10]} 60... h2 {[%clk 0:00:02.5]} 61. Kg2 {[%clk
0:00:10.2]} 61... Kf7 {[%clk 0:00:03.2]} 62. Kxh2 {[%clk 0:00:10.7]} 62... Ke6
{[%clk 0:00:03.3]} 63. Kg3 {[%clk 0:00:11.1]} 63... Kd5 {[%clk 0:00:03.7]} 64.
Bxg7 {[%clk 0:00:11]} 64... Ke4 {[%clk 0:00:03.5]} 65. Kf2 {[%clk 0:00:11.6]}
65... Kd3 {[%clk 0:00:03.5]} 66. Bf6 {[%clk 0:00:11.3]} 66... Ke4 {[%clk
0:00:03.5]} 67. Ke2 {[%clk 0:00:11.7]} 67... Kf5 {[%clk 0:00:03.8]} 68. Bd8
{[%clk 0:00:11.8]} 68... Ke4 {[%clk 0:00:04.2]} 69. Kd2 {[%clk 0:00:12]} 69...
Kd5 {[%clk 0:00:04.3]} 70. Kd3 {[%clk 0:00:12.4]} 70... Ke6 {[%clk 0:00:04.6]}
71. Bh4 {[%clk 0:00:13.2]} 71... Ke5 {[%clk 0:00:04.8]} 72. Bg3+ {[%clk
0:00:13.6]} 72... Kd5 {[%clk 0:00:04.9]} 73. e4+ {[%clk 0:00:12.6]} 73... Ke6
{[%clk 0:00:05.2]} 74. Kd4 {[%clk 0:00:13]} 74... Kd7 {[%clk 0:00:05.3]} 75. Ke5
{[%clk 0:00:13.1]} 75... Ke7 {[%clk 0:00:05.4]} 76. Bh4+ {[%clk 0:00:13.4]}
76... Kf7 {[%clk 0:00:05.7]} 77. Kd6 {[%clk 0:00:13]} 77... Ke8 {[%clk
0:00:05.2]} 78. e5 {[%clk 0:00:13]} 78... Kf8 {[%clk 0:00:04.9]} 79. Kd7 {[%clk
0:00:13]} 79... Kf7 {[%clk 0:00:05.4]} 80. e6+ {[%clk 0:00:13.4]} 1-0

[Event "Late-Titled-Tuesday-Blitz-November-28-2023"]
[Site "Chess.com"]
[Date "2023.11.28"]
[Round "3"]
[White "Staudenhocker43"]
[Black "seasidesunset"]
[Result "1-0"]
[WhiteElo "2519"]
[BlackElo "2217"]
[TimeControl "180+1"]
[EndTime "14:29:12 PST"]
[Termination "Staudenhocker43 won by checkmate"]

1. d4 {[%clk 0:03:00.9]} 1... Nf6 {[%clk 0:02:58.6]} 2. Bg5 {[%clk 0:03:01.4]}
2... g6 {[%clk 0:02:56.7]} 3. Bxf6 {[%clk 0:03:00.9]} 3... exf6 {[%clk
0:02:57.6]} 4. e3 {[%clk 0:03:00.9]} 4... Bg7 {[%clk 0:02:57.9]} 5. g3 {[%clk
0:03:01.2]} 5... d5 {[%clk 0:02:58.2]} 6. Bg2 {[%clk 0:03:01.5]} 6... c6 {[%clk
0:02:58.9]} 7. Ne2 {[%clk 0:03:00.9]} 7... O-O {[%clk 0:02:58.1]} 8. Nd2 {[%clk
0:03:00.3]} 8... f5 {[%clk 0:02:53.7]} 9. O-O {[%clk 0:02:58.8]} 9... Nd7 {[%clk
0:02:47.3]} 10. c4 {[%clk 0:02:58.1]} 10... dxc4 {[%clk 0:02:46.9]} 11. Nxc4
{[%clk 0:02:59]} 11... Nf6 {[%clk 0:02:45.3]} 12. Qc2 {[%clk 0:02:53.5]} 12...
Re8 {[%clk 0:02:37.2]} 13. b4 {[%clk 0:02:46.9]} 13... Ne4 {[%clk 0:02:29]} 14.
Nc3 {[%clk 0:02:35.7]} 14... Nd6 {[%clk 0:02:20]} 15. Na4 {[%clk 0:02:15.3]}
15... Be6 {[%clk 0:01:38.8]} 16. Nxd6 {[%clk 0:02:14.5]} 16... Qxd6 {[%clk
0:01:39.2]} 17. Nc5 {[%clk 0:02:14.7]} 17... Rab8 {[%clk 0:01:16.3]} 18. Rfc1
{[%clk 0:02:03.3]} 18... Bd5 {[%clk 0:01:15.6]} 19. Bxd5 {[%clk 0:02:01.5]}
19... Qxd5 {[%clk 0:01:16.5]} 20. Qb3 {[%clk 0:01:58.3]} 20... Qf3 {[%clk
0:01:12.3]} 21. Qd1 {[%clk 0:01:56.5]} 21... Qd5 {[%clk 0:01:07.9]} 22. Qf1
{[%clk 0:01:52.2]} 22... g5 {[%clk 0:00:30.2]} 23. Qg2 {[%clk 0:01:51.7]} 23...
Qxg2+ {[%clk 0:00:29.9]} 24. Kxg2 {[%clk 0:01:52.6]} 24... f4 {[%clk 0:00:30.7]}
25. gxf4 {[%clk 0:01:50.1]} 25... gxf4 {[%clk 0:00:30.8]} 26. Kf3 {[%clk
0:01:47]} 26... fxe3 {[%clk 0:00:28.3]} 27. fxe3 {[%clk 0:01:47.9]} 27... b6
{[%clk 0:00:26.3]} 28. Nd3 {[%clk 0:01:36.7]} 28... Re6 {[%clk 0:00:25.2]} 29.
Nf4 {[%clk 0:01:31.3]} 29... Rh6 {[%clk 0:00:24]} 30. Rc2 {[%clk 0:01:25.2]}
30... c5 {[%clk 0:00:23.1]} 31. bxc5 {[%clk 0:01:20.4]} 31... bxc5 {[%clk
0:00:23.2]} 32. Rg1 {[%clk 0:01:18.4]} 32... Kf8 {[%clk 0:00:16.1]} 33. dxc5
{[%clk 0:01:17.5]} 33... Re8 {[%clk 0:00:14.6]} 34. c6 {[%clk 0:01:14.4]} 34...
Rc8 {[%clk 0:00:14.7]} 35. Rgc1 {[%clk 0:01:00.1]} 35... Be5 {[%clk 0:00:12.5]}
36. Ke4 {[%clk 0:00:54.3]} 36... Bxf4 {[%clk 0:00:10.3]} 37. exf4 {[%clk
0:00:54.3]} 37... Re6+ {[%clk 0:00:10.1]} 38. Kf3 {[%clk 0:00:52.2]} 38... Rh6
{[%clk 0:00:09.8]} 39. c7 {[%clk 0:00:48]} 39... Rb6 {[%clk 0:00:09.2]} 40. Kg4
{[%clk 0:00:40.7]} 40... Rb5 {[%clk 0:00:08.4]} 41. Rc5 {[%clk 0:00:30.5]} 41...
Rb6 {[%clk 0:00:06.5]} 42. R1c2 {[%clk 0:00:29.1]} 42... Rg6+ {[%clk 0:00:06.2]}
43. Kf3 {[%clk 0:00:28.4]} 43... Rb6 {[%clk 0:00:07.1]} 44. Rh5 {[%clk
0:00:26.4]} 44... h6 {[%clk 0:00:06.7]} 45. Ra5 {[%clk 0:00:26.1]} 45... a6
{[%clk 0:00:06.4]} 46. Rac5 {[%clk 0:00:26.2]} 46... Ke7 {[%clk 0:00:06.1]} 47.
Rc6 {[%clk 0:00:26]} 47... Rxc6 {[%clk 0:00:05.6]} 48. Rxc6 {[%clk 0:00:26.9]}
48... Kd7 {[%clk 0:00:06.3]} 49. Rxh6 {[%clk 0:00:25.1]} 49... a5 {[%clk
0:00:04.6]} 50. Ra6 {[%clk 0:00:24.6]} 50... Rxc7 {[%clk 0:00:04.8]} 51. Rxa5
{[%clk 0:00:24.8]} 51... Ke6 {[%clk 0:00:04.8]} 52. h4 {[%clk 0:00:23.2]} 52...
f5 {[%clk 0:00:04.2]} 53. Ra6+ {[%clk 0:00:20.8]} 53... Kf7 {[%clk 0:00:04.4]}
54. h5 {[%clk 0:00:20.3]} 54... Rc3+ {[%clk 0:00:04.4]} 55. Kg2 {[%clk
0:00:20.6]} 55... Rc2+ {[%clk 0:00:04.5]} 56. Kg3 {[%clk 0:00:20.8]} 56... Rc3+
{[%clk 0:00:03.8]} 57. Kh4 {[%clk 0:00:20.8]} 57... Rc5 {[%clk 0:00:02.1]} 58.
Kg5 {[%clk 0:00:20.7]} 58... Kg7 {[%clk 0:00:03]} 59. Ra7+ {[%clk 0:00:20.5]}
59... Kh8 {[%clk 0:00:03]} 60. a4 {[%clk 0:00:21.4]} 60... Rc6 {[%clk
0:00:02.9]} 61. Kxf5 {[%clk 0:00:21.1]} 61... Rc5+ {[%clk 0:00:02.7]} 62. Kg6
{[%clk 0:00:21]} 62... Rc6+ {[%clk 0:00:03.6]} 63. Kg5 {[%clk 0:00:21.4]} 63...
Rc5+ {[%clk 0:00:04]} 64. f5 {[%clk 0:00:22.1]} 64... Rc1 {[%clk 0:00:04.7]} 65.
a5 {[%clk 0:00:22.3]} 65... Rg1+ {[%clk 0:00:04.7]} 66. Kf6 {[%clk 0:00:22.1]}
66... Rg7 {[%clk 0:00:05.4]} 67. Ra8+ {[%clk 0:00:21.3]} 67... Kh7 {[%clk
0:00:05.9]} 68. a6 {[%clk 0:00:21.1]} 68... Rg3 {[%clk 0:00:04.1]} 69. Ke7
{[%clk 0:00:16.5]} 69... Re3+ {[%clk 0:00:04.3]} 70. Kf7 {[%clk 0:00:16.2]}
70... Rf3 {[%clk 0:00:03.9]} 71. f6 {[%clk 0:00:16.3]} 71... Rg3 {[%clk
0:00:03.9]} 72. Ke6 {[%clk 0:00:16.1]} 72... Re3+ {[%clk 0:00:04.1]} 73. Kd5
{[%clk 0:00:15.9]} 73... Rf3 {[%clk 0:00:05]} 74. Ke5 {[%clk 0:00:15.5]} 74...
Re3+ {[%clk 0:00:05.3]} 75. Kf5 {[%clk 0:00:15.3]} 75... Rf3+ {[%clk 0:00:05.7]}
76. Ke6 {[%clk 0:00:15.7]} 76... Re3+ {[%clk 0:00:06]} 77. Kd6 {[%clk 0:00:16]}
77... Rd3+ {[%clk 0:00:06.4]} 78. Ke7 {[%clk 0:00:16.6]} 78... Re3+ {[%clk
0:00:07]} 79. Kf8 {[%clk 0:00:16.9]} 79... Rf3 {[%clk 0:00:07.7]} 80. f7 {[%clk
0:00:17.2]} 80... Rh3 {[%clk 0:00:07.5]} 81. Re8 {[%clk 0:00:15.6]} 81... Re3
{[%clk 0:00:08.4]} 82. Rxe3 {[%clk 0:00:15.2]} 82... Kh8 {[%clk 0:00:09.1]} 83.
a7 {[%clk 0:00:14.4]} 83... Kh7 {[%clk 0:00:10]} 84. a8=Q {[%clk 0:00:14.4]}
84... Kh6 {[%clk 0:00:10.9]} 85. Ke7 {[%clk 0:00:14.4]} 85... Kg5 {[%clk
0:00:11.8]} 86. Qg8+ {[%clk 0:00:14.1]} 86... Kh6 {[%clk 0:00:12.7]} 87. Qg6#
{[%clk 0:00:14.2]} 1-0

[Event "Late-Titled-Tuesday-Blitz-November-28-2023"]
[Site "Chess.com"]
[Date "2023.11.28"]
[Round "3"]
[White "Angry_Twin"]
[Black "DawnofEpiphany"]
[Result "1-0"]
[WhiteElo "2945"]
[BlackElo "2647"]
[TimeControl "180+1"]
[EndTime "14:29:15 PST"]
[Termination "Angry_Twin won on time"]

1. d4 {[%clk 0:03:00.9]} 1... e6 {[%clk 0:02:56.1]} 2. c4 {[%clk 0:03:01]} 2...
b6 {[%clk 0:02:53.1]} 3. Nf3 {[%clk 0:03:01]} 3... Bb7 {[%clk 0:02:51.9]} 4. g3
{[%clk 0:03:01.7]} 4... Bb4+ {[%clk 0:02:50.6]} 5. Bd2 {[%clk 0:03:00.3]} 5...
Bxf3 {[%clk 0:02:50]} 6. exf3 {[%clk 0:02:59.9]} 6... Bxd2+ {[%clk 0:02:50]} 7.
Qxd2 {[%clk 0:02:59.8]} 7... Ne7 {[%clk 0:02:46.6]} 8. Bg2 {[%clk 0:02:59.6]}
8... d5 {[%clk 0:02:46.4]} 9. f4 {[%clk 0:02:59.2]} 9... O-O {[%clk 0:02:17.4]}
10. Nc3 {[%clk 0:02:59]} 10... Nbc6 {[%clk 0:02:09.7]} 11. cxd5 {[%clk
0:02:51.1]} 11... Nxd5 {[%clk 0:02:08.2]} 12. O-O {[%clk 0:02:50.7]} 12... Nce7
{[%clk 0:02:07.4]} 13. Rac1 {[%clk 0:02:49.9]} 13... c6 {[%clk 0:02:04.5]} 14.
Rfd1 {[%clk 0:02:50.4]} 14... Rc8 {[%clk 0:02:03.8]} 15. Ne4 {[%clk 0:02:50.5]}
15... Qd7 {[%clk 0:02:01.9]} 16. Ng5 {[%clk 0:02:50.7]} 16... Nf6 {[%clk
0:02:00.9]} 17. Nf3 {[%clk 0:02:50.6]} 17... Rfd8 {[%clk 0:01:57.6]} 18. Ne5
{[%clk 0:02:50.9]} 18... Qd6 {[%clk 0:01:55.5]} 19. Qc2 {[%clk 0:02:43]} 19...
Nfd5 {[%clk 0:01:45.1]} 20. a3 {[%clk 0:02:39.4]} 20... Rc7 {[%clk 0:01:40.7]}
21. Qa4 {[%clk 0:02:37.8]} 21... Rdc8 {[%clk 0:01:38.4]} 22. b4 {[%clk 0:02:37]}
22... Nf5 {[%clk 0:01:29.5]} 23. h3 {[%clk 0:02:36.7]} 23... h5 {[%clk
0:01:26.7]} 24. h4 {[%clk 0:02:34.1]} 24... g6 {[%clk 0:01:25.5]} 25. Qb3 {[%clk
0:02:21.9]} 25... Nde7 {[%clk 0:01:25.1]} 26. Qb2 {[%clk 0:02:19.6]} 26... Rd8
{[%clk 0:01:24.5]} 27. Nc4 {[%clk 0:02:14.5]} 27... Qd7 {[%clk 0:01:24.1]} 28.
Ne5 {[%clk 0:02:13.1]} 28... Qd6 {[%clk 0:01:24.4]} 29. Nf3 {[%clk 0:02:13.1]}
29... Nd5 {[%clk 0:01:23.6]} 30. Rd2 {[%clk 0:02:07.8]} 30... Nf6 {[%clk
0:01:23.6]} 31. Rcd1 {[%clk 0:02:05.6]} 31... Ne4 {[%clk 0:01:23.1]} 32. Re2
{[%clk 0:02:04.5]} 32... Nf6 {[%clk 0:01:22.9]} 33. Ree1 {[%clk 0:01:57.3]}
33... Nd5 {[%clk 0:01:22.4]} 34. Ne5 {[%clk 0:01:46.7]} 34... Nde7 {[%clk
0:01:21.9]} 35. Nf3 {[%clk 0:01:35.3]} 35... Nd5 {[%clk 0:01:22]} 36. Bf1 {[%clk
0:01:35.5]} 36... Nde7 {[%clk 0:01:22]} 37. Bh3 {[%clk 0:01:33.5]} 37... Rdc8
{[%clk 0:01:19.9]} 38. Ne5 {[%clk 0:01:32.2]} 38... Rd8 {[%clk 0:01:19.6]} 39.
Nf3 {[%clk 0:01:30]} 39... Rdc8 {[%clk 0:01:19.5]} 40. Rd2 {[%clk 0:01:29.7]}
40... Rd8 {[%clk 0:01:19.7]} 41. Qb3 {[%clk 0:01:25.7]} 41... Rcd7 {[%clk
0:01:19.8]} 42. Rc1 {[%clk 0:01:19.1]} 42... Qb8 {[%clk 0:01:15.5]} 43. Rcd1
{[%clk 0:01:16.5]} 43... Qc7 {[%clk 0:01:10]} 44. Qb2 {[%clk 0:01:16.4]} 44...
Qb7 {[%clk 0:01:08.4]} 45. Ne5 {[%clk 0:01:16]} 45... Rd6 {[%clk 0:01:07.8]} 46.
Bg2 {[%clk 0:01:16.2]} 46... Qc7 {[%clk 0:01:07.5]} 47. Be4 {[%clk 0:01:16.5]}
47... Qc8 {[%clk 0:00:59.6]} 48. Qc3 {[%clk 0:01:11.8]} 48... Nd5 {[%clk
0:00:50.9]} 49. Bxd5 {[%clk 0:01:09.5]} 49... cxd5 {[%clk 0:00:46.3]} 50. Qd3
{[%clk 0:01:09.6]} 50... Qb7 {[%clk 0:00:44]} 51. Rc2 {[%clk 0:01:09.6]} 51...
Rc8 {[%clk 0:00:44]} 52. Rdc1 {[%clk 0:01:10.1]} 52... Rxc2 {[%clk 0:00:40.8]}
53. Rxc2 {[%clk 0:01:11]} 53... Rd8 {[%clk 0:00:41]} 54. Nc6 {[%clk 0:01:11.3]}
54... Rc8 {[%clk 0:00:39.1]} 55. b5 {[%clk 0:01:12]} 55... Nd6 {[%clk
0:00:37.9]} 56. a4 {[%clk 0:01:12.4]} 56... Qd7 {[%clk 0:00:34.9]} 57. f3 {[%clk
0:01:10.3]} 57... Kg7 {[%clk 0:00:33.8]} 58. g4 {[%clk 0:01:10.1]} 58... Rh8
{[%clk 0:00:32.8]} 59. Rh2 {[%clk 0:00:43.9]} 59... Qc7 {[%clk 0:00:30.8]} 60.
Qe3 {[%clk 0:00:26.2]} 60... Nc4 {[%clk 0:00:30.8]} 61. Qc1 {[%clk 0:00:26.9]}
61... a6 {[%clk 0:00:30.7]} 62. Kg2 {[%clk 0:00:26]} 62... axb5 {[%clk
0:00:30.7]} 63. axb5 {[%clk 0:00:26.9]} 63... Qd6 {[%clk 0:00:27.8]} 64. f5
{[%clk 0:00:26.5]} 64... gxf5 {[%clk 0:00:21.6]} 65. gxf5 {[%clk 0:00:26.8]}
65... Kf8 {[%clk 0:00:22.3]} 66. Kg1 {[%clk 0:00:22.3]} 66... Qg3+ {[%clk
0:00:18.6]} 67. Rg2 {[%clk 0:00:22.8]} 67... Qxh4 {[%clk 0:00:17.4]} 68. fxe6
{[%clk 0:00:21.8]} 68... fxe6 {[%clk 0:00:18.3]} 69. Qa1 {[%clk 0:00:19.7]}
69... Nd6 {[%clk 0:00:05]} 70. Qa8+ {[%clk 0:00:18.5]} 70... Ne8 {[%clk
0:00:05.4]} 71. Qa3+ {[%clk 0:00:15.4]} 71... Kf7 {[%clk 0:00:04.6]} 72. Qe3
{[%clk 0:00:16.1]} 72... Kf6 {[%clk 0:00:03.6]} 73. Qe5+ {[%clk 0:00:15.8]}
73... Kf7 {[%clk 0:00:04.1]} 74. Qe3 {[%clk 0:00:12.9]} 74... Kf8 {[%clk
0:00:04.4]} 75. Ne5 {[%clk 0:00:13.1]} 75... Rg8 {[%clk 0:00:04.8]} 76. Ng6+
{[%clk 0:00:11.4]} 76... Rxg6 {[%clk 0:00:05.2]} 77. Rxg6 {[%clk 0:00:12.3]}
77... Ng7 {[%clk 0:00:02.9]} 78. Qe5 {[%clk 0:00:09]} 78... Nf5 {[%clk
0:00:01.9]} 79. Qxe6 {[%clk 0:00:08.3]} 1-0